bitfinex-derivatives/quotes_ETHF0:USTF0_20250828
["timestamp","ask_amount","ask_price","bid_price","bid_amount"]
[1756373732560,0.39194,4592.3,4592.2,19.79]
[1756373732763,1.73984,4592.3,4592.2,19.79]
[1756373733062,1.20524,4592.3,4592.2,19.79]
[1756373733262,0.4051,4592.3,4592.2,20.18195]
[1756373733667,0.39193,4592.4,4592.2,20.18095]
[1756373733957,0.79698,4593.0,4592.4,0.97983]
[1756373734166,0.3919,4592.8,4592.7,3.5997]
[1756373734353,0.797,4592.8,4592.7,22.9968]
[1756373734956,0.797,4592.8,4592.7,23.3887]
[1756373738060,0.797,4592.8,4592.7,23.3887]
[1756373738660,1.2048,4592.8,4592.7,22.9968]
[1756373738962,0.797,4592.8,4592.7,23.3887]
[1756373739761,1.2048,4592.8,4592.7,23.3887]
[1756373739961,1.2048,4592.8,4592.7,22.9968]
[1756373740768,1.2048,4592.8,4592.7,23.3887]
[1756373741469,1.2048,4592.8,4592.7,3.2078]
[1756373741669,1.2048,4592.8,4592.7,22.9928]
[1756373743268,1.9822,4592.8,4592.7,3.2078]
[1756373743471,2.3928,4592.8,4592.7,22.9928]
[1756373744183,2.3928,4592.8,4592.7,3.2078]
[1756373744384,2.3928,4592.8,4592.7,22.9908]
[1756373744679,2.3928,4592.8,4592.7,3.2078]
[1756373744881,0.39194,4592.3,4592.2,3.2078]
[1756373745081,2.36734,4592.3,4592.2,3.2078]
[1756373745277,2.36734,4592.3,4592.2,22.9898]
[1756373745583,2.84367612,4592.3,4592.2,19.79]
[1756373746085,1.198,4592.2,4592.1,31.368]
[1756373746387,1.67433612,4592.2,4592.1,51.158]
[1756373746682,5.67433612,4592.2,4592.1,51.158]
[1756373747678,6.45173612,4592.2,4592.1,19.79]
[1756373749685,1.9754,4591.8,4591.7,3.2078]
[1756373749882,1.9754,4591.8,4591.7,23.0008]
[1756373749883,2.36738,4591.8,4591.7,23.0008]
[1756373750688,2.36738,4591.8,4590.7,31.369]
[1756373750689,1.50371,4591.6,4591.2,3.2078]
[1756373750886,1.17941,4591.4,4591.3,19.792]
[1756373751189,2.36741,4591.4,4591.3,19.792]
[1756373754087,1.17942,4591.3,4591.2,3.2078]
[1756373754289,1.17942,4591.3,4591.2,22.9998]
[1756373756885,1.17942,4591.3,4590.2,1.56215416]
[1756373756886,1.95682,4591.3,4590.2,1.56215416]
[1756373757086,1.16947,4590.8,4590.7,3.2078]
[1756373757290,0.3796,4590.2,4590.1,3.2078]
[1756373757591,0.3796,4590.2,4590.1,23.0048]
[1756373757989,0.77172,4590.2,4590.1,23.0048]
[1756373758284,0.98016,4590.9,4590.1,27.0048]
[1756373758486,0.39206,4590.9,4590.8,3.2078]
[1756373758682,0.39206,4590.9,4590.8,23.0078]
[1756373759086,2.36746,4590.9,4590.8,23.0108]
[1756373759285,0.39206,4590.9,4590.8,23.0108]
[1756373759991,0.39205,4591.0,4590.8,23.40286]
[1756373760192,0.39205,4591.0,4590.8,23.0108]
[1756373760694,0.39205,4591.0,4590.8,23.40286]
[1756373761595,0.39205,4591.0,4590.8,23.0108]
[1756373761897,0.3796,4590.9,4590.8,23.0108]
[1756373763504,0.77166,4590.9,4590.8,23.40287]
[1756373764201,0.39205,4591.0,4590.9,0.39206]
[1756373764698,0.77165,4591.0,4590.9,0.39206]
[1756373766801,1.17945,4591.0,4590.9,0.39206]
[1756373767902,2.36745,4591.0,4590.9,0.39206]
[1756373768091,0.39206,4590.9,4590.8,23.40287]
[1756373768295,1.69736,4590.9,4590.8,23.40287]
[1756373768693,1.5883,4590.9,4590.8,3.59987]
[1756373768899,1.9814,4590.9,4590.8,23.39487]
[1756373769099,2.37346,4590.9,4590.8,23.39487]
[1756373769704,1.98036,4590.9,4590.8,23.39487]
[1756373770500,0.39,4590.9,4590.8,23.39487]
[1756373771208,0.39,4592.7,4590.8,27.0028]
[1756373771406,3.2078,4593.6,4592.6,3.2078]
[1756373771701,0.39184,4593.5,4593.1,3.2078]
[1756373771902,0.39184,4593.5,4592.2,32.35787]
[1756373771903,0.254,4592.9,4592.8,3.2078]
[1756373772103,1.5883,4592.9,4592.8,23.0238]
[1756373773404,0.7913,4592.9,4592.8,23.41569]
[1756373773606,0.39,4592.9,4592.8,23.41569]
[1756373774103,0.39,4592.9,4592.8,23.41669]
[1756373774702,0.07818,4593.2,4593.0,0.39188]
[1756373774913,0.07818,4593.2,4593.1,19.816]
[1756373776207,0.46818,4593.2,4593.1,19.816]
[1756373776406,0.86948,4593.2,4593.1,19.816]
[1756373777412,0.86948,4593.2,4593.1,19.814]
[1756373778110,0.07818,4593.2,4593.1,19.814]
[1756373779105,0.39,4594.4,4594.3,0.39177]
[1756373779312,0.39,4594.6,4594.5,0.39175]
[1756373779606,0.797,4594.4,4594.3,3.2078]
[1756373779806,1.9814,4594.4,4594.3,3.2078]
[1756373780008,1.9814,4594.4,4594.3,23.0328]
[1756373780310,1.9814,4594.4,4594.3,3.2078]
[1756373780503,1.9814,4594.4,4594.3,23.0348]
[1756373782000,0.39,4595.0,4594.8,0.39172]
[1756373782309,0.3931,4595.6,4594.8,0.39172]
[1756373782310,0.39,4595.3,4595.1,0.39169]
[1756373782509,0.39,4595.3,4595.2,19.833]
[1756373782808,0.7913,4595.3,4595.2,19.833]
[1756373783806,0.39,4595.3,4595.2,19.833]
[1756373785316,0.7913,4595.3,4595.2,19.833]
[1756373786208,1.0513,4595.3,4595.2,19.833]
[1756373786808,0.7913,4595.3,4595.2,19.833]
[1756373787207,0.39,4595.3,4595.2,19.833]
[1756373787510,1.18299,4595.2,4595.1,0.39169]
[1756373787711,1.18299,4595.2,4595.1,19.83]
[1756373788112,1.18299,4595.2,4595.0,0.3917]
[1756373788306,1.18299,4595.2,4595.1,19.827]
[1756373789008,0.543,4595.2,4594.8,3.2078]
[1756373789211,2.37312,4594.9,4594.8,3.2078]
[1756373789513,2.37312,4594.9,4594.8,23.0328]
[1756373790516,1.5883,4594.4,4594.3,3.2078]
[1756373790716,1.9814,4594.4,4594.3,23.0368]
[1756373791317,2.37316,4594.4,4594.3,23.0368]
[1756373792009,2.37316,4594.4,4594.3,3.2078]
[1756373792212,2.37316,4594.4,4594.3,23.0398]
[1756373792714,2.37316,4594.4,4594.3,3.2078]
[1756373792916,2.37316,4594.4,4594.3,23.0388]
[1756373793421,1.98006,4594.4,4594.3,23.0388]
[1756373793610,1.18306,4594.4,4594.3,23.0388]
[1756373793810,1.98006,4594.4,4594.3,23.0388]
[1756373794515,1.18306,4594.4,4594.3,23.0388]
[1756373794818,1.98006,4594.4,4594.3,23.0388]
[1756373795314,2.37316,4594.4,4594.3,23.0358]
[1756373795513,1.98006,4594.4,4594.3,23.0358]
[1756373795816,1.18306,4594.4,4594.3,23.0358]
[1756373796119,1.98006,4594.4,4594.3,23.0358]
[1756373796915,0.39,4594.4,4594.3,23.0358]
[1756373797120,0.39171,4595.0,4594.8,0.39172]
[1756373797319,0.39171,4595.0,4594.9,23.0408]
[1756373798511,0.77061,4595.0,4594.9,23.0408]
[1756373798709,1.17141,4595.0,4594.9,23.0408]
[1756373798921,0.3789,4595.3,4594.9,23.43251]
[1756373799231,0.39168,4595.3,4595.1,0.39169]
[1756373799412,0.39168,4595.3,4595.2,19.836]
[1756373799616,0.77058,4595.3,4595.2,19.836]
[1756373799822,1.17138,4595.3,4595.2,19.836]
[1756373800118,1.2771,4595.3,4595.2,19.836]
[1756373800324,0.7797,4595.0,4594.9,3.2078]
[1756373800522,0.7797,4595.0,4594.9,23.0438]
[1756373800523,1.9757,4595.0,4594.9,23.0438]
[1756373801409,1.9757,4595.0,4594.9,23.0408]
[1756373802222,1.9757,4595.0,4594.9,3.2078]
[1756373802423,1.9757,4595.0,4594.9,23.0408]
[1756373803020,1.9757,4595.0,4594.9,3.2078]
[1756373803217,1.9757,4595.0,4594.9,23.0398]
[1756373803427,1.5465,4595.0,4594.9,23.0398]
[1756373804219,0.3789,4595.0,4594.9,23.0398]
[1756373804425,0.77059,4595.3,4594.9,23.0398]
[1756373804624,0.3789,4595.2,4594.9,23.0398]
[1756373804825,0.3789,4595.2,4595.1,0.39169]
[1756373805014,0.3789,4595.2,4595.1,20.21969]
[1756373805528,0.77058,4595.4,4595.3,0.39168]
[1756373805727,0.77058,4595.4,4595.3,20.21868]
[1756373805929,1.17138,4595.4,4595.3,20.21868]
[1756373806117,1.66380925,4595.4,4595.3,19.827]
[1756373806423,1.9757,4595.0,4594.9,3.59951]
[1756373806621,0.87132925,4595.0,4594.9,23.42451]
[1756373807025,0.49242925,4595.0,4594.9,23.42451]
[1756373807426,0.88412925,4595.1,4594.9,23.42451]
[1756373807724,0.49242925,4595.0,4594.9,23.42451]
[1756373808027,0.87132925,4595.0,4594.9,23.42451]
[1756373808628,0.87132925,4595.0,4594.9,23.42351]
[1756373809620,1.27212925,4595.0,4594.9,23.42351]
[1756373809819,2.03892925,4595.0,4594.9,23.42351]
[1756373810020,2.46812925,4595.0,4594.9,23.42351]
[1756373810229,2.46812925,4595.0,4594.9,23.0278]
[1756373810428,1.66383925,4595.0,4594.9,23.41952]
[1756373812327,1.27212925,4595.0,4594.9,23.41952]
[1756373812528,0.49242925,4595.0,4594.9,23.41952]
[1756373812725,0.49255161,4595.0,4594.9,23.0278]
[1756373812927,1.26316161,4595.0,4594.9,3.59952]
[1756373813229,0.87145161,4595.0,4594.9,23.41252]
[1756373813432,0.49255161,4595.0,4594.9,23.41252]
[1756373814729,0.87145161,4595.0,4594.9,23.41252]
[1756373815630,0.49255161,4595.0,4594.9,23.41252]
[1756373816332,0.3789,4595.4,4595.3,0.39168]
[1756373816530,0.3789,4595.4,4595.3,20.19968]
[1756373817433,0.77057,4595.4,4595.3,20.19968]
[1756373818630,1.17137,4595.4,4595.3,20.19968]
[1756373820538,1.40832,4595.8,4594.9,3.59951]
[1756373820539,1.15851,4595.0,4594.9,3.59951]
[1756373820739,0.3789,4595.0,4594.9,23.40351]
[1756373820932,0.39168,4595.3,4595.2,0.39169]
[1756373821235,1.17138,4595.3,4595.2,20.19969]
[1756373821438,1.42788,4595.3,4595.2,20.19969]
[1756373821929,1.17138,4595.3,4595.2,20.19969]
[1756373823639,1.17138,4595.3,4595.2,0.39169]
[1756373823937,1.93821,4595.1,4595.0,0.39171]
[1756373824133,0.3789,4595.5,4594.9,3.2078]
[1756373824335,0.49236113,4595.4,4595.0,18.744]
[1756373824537,0.77056,4595.5,4595.4,0.39167]
[1756373824738,0.77056,4595.5,4595.4,19.802]
[1756373825129,1.17136,4595.5,4595.4,19.802]
[1756373825331,0.3789,4595.5,4595.4,23.40147]
[1756373826541,0.77056,4595.5,4595.4,23.40147]
[1756373827042,1.17136,4595.5,4595.4,23.0098]
[1756373827435,0.3789,4595.5,4595.4,23.40147]
[1756373827630,0.9266,4596.0,4595.4,23.40147]
[1756373827942,0.99030786,4595.9,4595.4,23.40147]
[1756373828239,0.77246,4595.6,4595.4,23.40147]
[1756373828439,0.39166,4595.5,4595.4,23.40147]
[1756373829240,0.3808,4595.6,4595.5,0.39166]
[1756373829438,0.77246,4595.6,4595.5,0.39166]
[1756373829839,1.13576,4595.6,4595.5,0.39166]
[1756373831243,1.38816,4595.6,4595.5,0.39166]
[1756373831851,1.64356,4595.6,4595.5,0.39166]
[1756373832550,2.32926,4595.6,4595.5,0.39166]
[1756373832750,1.13576,4595.6,4595.5,0.39166]
[1756373834352,2.32926,4595.6,4595.5,0.39166]
[1756373838548,0.3808,4595.6,4595.5,0.39166]
[1756373841157,0.7441,4597.0,4596.9,0.39154]
[1756373841458,1.1644,4597.0,4596.9,55.25424]
[1756373841952,1.1644,4597.0,4596.9,54.3508]
[1756373842551,1.1644,4597.0,4596.9,54.5903]
[1756373844159,1.1644,4597.0,4596.9,34.5558]
[1756373844462,1.1644,4597.0,4596.9,54.3508]
[1756373845154,1.1644,4597.0,4596.9,54.5903]
[1756373845355,0.3808,4597.0,4596.9,54.6336]
[1756373845560,0.7441,4597.5,4597.4,0.9837]
[1756373845754,0.7441,4597.5,4597.4,23.9905]
[1756373845958,1.2519,4597.5,4597.4,23.9905]
[1756373846157,1.9376,4597.5,4597.4,23.9905]
[1756373847750,1.0095,4597.5,4597.4,23.9905]
[1756373847954,0.7441,4597.5,4597.4,24.0338]
[1756373848765,1.2519,4597.5,4597.4,23.9905]
[1756373849562,0.3808,4597.5,4597.4,24.0338]
[1756373851052,1.1644,4597.9,4597.8,0.74417]
[1756373851256,1.1644,4597.9,4597.8,20.77367]
[1756373851557,0.7441,4597.9,4597.8,20.77367]
[1756373851865,0.3633,4598.3,4598.2,1.02693]
[1756373852062,0.3633,4598.3,4598.2,24.02773]
[1756373852260,0.7441,4598.3,4598.2,24.02773]
[1756373853058,0.7441,4598.3,4598.2,24.20390982]
[1756373853256,0.7441,4598.3,4598.2,24.02773]
[1756373853459,0.7441,4598.7,4598.6,0.6748]
[1756373853657,0.7441,4598.7,4598.6,20.7776]
[1756373853860,1.5173,4598.7,4598.6,20.7776]
[1756373854261,1.5173,4598.7,4598.6,20.3862]
[1756373854463,1.9376,4598.7,4598.6,20.3169]
[1756373854657,0.39142,4598.4,4598.3,0.46072]
[1756373854870,1.90872,4598.4,4598.3,0.98362]
[1756373855167,2.32902,4598.4,4598.3,17.8412]
[1756373855566,1.9376,4598.4,4598.3,17.8412]
[1756373856765,1.9376,4598.4,4598.3,0.2395]
[1756373856965,1.96573,4598.3,4598.2,3.2078]
[1756373857169,2.32903,4598.3,4598.2,17.2758]
[1756373859066,2.32903,4598.3,4598.2,17.5161]
[1756373859269,2.32903,4598.3,4598.2,3.4481]
[1756373859471,2.32903,4598.3,4598.2,23.5644]
[1756373860073,2.32903,4598.3,4598.2,3.7764]
[1756373860274,2.32903,4598.3,4598.2,23.5614]
[1756373864575,2.32903,4598.3,4598.2,3.2078]
[1756373864873,0.39147,4597.8,4597.7,3.2078]
[1756373865070,0.5119,4597.3,4597.2,3.4666]
[1756373865273,1.9008,4597.3,4597.2,24.3951]
[1756373865666,2.29231,4597.3,4597.2,24.3951]
[1756373865870,2.29231,4597.3,4597.2,4.6071]
[1756373866076,2.29231,4597.3,4597.2,22.9988]
[1756373866373,2.29231,4597.3,4597.2,23.9459]
[1756373866976,2.29231,4597.3,4597.2,24.1832]
[1756373867366,2.29231,4597.3,4597.2,23.9459]
[1756373867570,2.29231,4597.3,4597.2,23.2692]
[1756373867772,2.29231,4597.3,4597.2,22.9988]
[1756373869479,2.29231,4597.3,4597.2,23.4167]
[1756373869680,2.29231,4597.3,4597.2,23.9459]
[1756373873184,2.29231,4597.3,4597.2,24.1832]
[1756373873380,2.29231,4597.3,4597.2,24.3981]
[1756373874280,2.29231,4597.3,4597.2,24.784]
[1756373876391,2.29231,4597.3,4597.2,4.993]
[1756373876687,2.29231,4597.3,4597.2,21.1763]
[1756373876991,2.29231,4597.3,4597.2,21.5622]
[1756373877391,2.29231,4597.3,4597.2,20.9614]
[1756373877688,2.29231,4597.3,4597.2,20.3082]
[1756373877890,0.39154,4597.0,4596.9,31.9808]
[1756373878089,1.52594,4597.0,4596.9,51.7588]
[1756373878483,1.52594,4597.0,4596.9,51.7578]
[1756373878978,1.52594,4597.0,4596.9,51.124]
[1756373879178,1.52594,4597.0,4596.9,31.348]
[1756373879380,2.29236,4596.7,4596.6,0.4179]
[1756373879590,2.29236,4596.7,4596.6,20.1989]
[1756373879778,2.29236,4596.7,4596.6,20.7281]
[1756373879979,0.39158,4596.5,4596.4,0.2149]
[1756373880181,0.39161,4596.1,4596.0,0.2149]
[1756373880386,2.29241,4596.1,4596.0,16.1552]
[1756373880787,1.90431,4596.1,4596.0,16.1552]
[1756373881594,2.29241,4596.1,4596.0,16.1552]
[1756373882092,2.29241,4596.1,4596.0,21.5702]
[1756373882392,2.29241,4596.1,4596.0,1.3993]
[1756373882598,2.29241,4596.1,4596.0,0.2704]
[1756373882894,2.29241,4596.1,4596.0,20.7301]
[1756373883083,2.29241,4596.1,4596.0,21.1823]
[1756373883289,2.29241,4596.1,4596.0,1.3993]
[1756373883484,2.29241,4596.1,4596.0,21.1823]
[1756373887698,0.97911,4595.8,4595.6,0.2149]
[1756373887899,2.29244,4595.8,4595.7,20.7241]
[1756373888100,2.29244,4595.8,4595.7,21.1921]
[1756373889498,0.39166,4595.5,4595.4,31.337]
[1756373889797,4.78896,4595.5,4595.4,31.5484]
[1756373889996,5.56706,4595.5,4595.4,19.778]
[1756373892395,0.7781,4594.7,4594.6,0.7566]
[1756373892700,2.35933,4594.7,4594.6,21.3288]
[1756373895797,2.35933,4594.7,4594.6,20.9756]
[1756373895996,2.35933,4594.7,4594.6,20.7642]
[1756373896301,2.35933,4594.7,4594.6,20.9756]
[1756373897101,2.35933,4594.7,4594.6,21.3288]
[1756373902501,2.35933,4594.7,4594.6,1.5518]
[1756373902705,2.35937,4594.3,4594.2,1.5518]
[1756373903006,5.56717,4594.3,4594.2,20.2458]
[1756373903304,5.56717,4594.3,4594.2,20.0152]
[1756373903706,6.05174365,4594.3,4594.2,20.0152]
[1756373904105,6.05174365,4594.3,4594.2,20.2458]
[1756373904807,6.05174365,4594.3,4594.2,20.0152]
[1756373905204,6.05174365,4594.3,4594.2,20.2458]
[1756373905695,6.05174365,4594.3,4594.2,19.08693]
[1756373906007,6.05174365,4594.3,4594.2,20.28553]
[1756373906799,6.05174365,4594.3,4594.2,1.1986]
[1756373908508,4.08414365,4594.3,4594.2,1.3818]
[1756373909511,4.08478062,4594.3,4594.2,1.3818]
[1756373909712,4.46618062,4594.3,4594.2,1.3818]
[1756373910402,3.2078,4594.3,4594.2,5.3818]
[1756373910714,1.77667358,4596.1,4594.2,4.21766]
[1756373910715,0.39173,4594.8,4594.2,4.21766]
[1756373910913,0.39173,4594.8,4594.5,0.39175]
[1756373911102,3.2078,4594.9,4594.7,0.39173]
[1756373911405,0.39171,4595.0,4594.8,0.36173338]
[1756373911809,0.39171,4595.0,4594.8,4.36173338]
[1756373912013,0.39171,4595.0,4594.8,4.0]
[1756373912210,0.39172,4594.8,4594.6,15.239]
[1756373912709,0.3917,4595.1,4594.8,0.39172]
[1756373913210,0.39171,4595.0,4594.8,0.39172]
[1756373913610,3.2078,4595.4,4594.6,15.63074]
[1756373913816,0.39171,4595.0,4594.7,0.39173]
[1756373914006,0.2515,4595.1,4594.6,15.239]
[1756373914209,0.39173,4594.8,4594.7,19.785]
[1756373914609,0.3917,4595.1,4594.9,0.39171]
[1756373914806,3.5892,4595.4,4594.7,20.17673]
[1756373915109,0.39172,4594.9,4594.7,19.785]
[1756373915309,0.3814,4594.8,4594.7,19.785]
[1756373916617,0.39173,4594.8,4594.7,19.787]
[1756373916816,0.77313,4594.8,4594.7,19.787]
[1756373917005,1.40803,4594.8,4594.7,19.787]
[1756373917210,2.35933,4594.8,4594.7,19.787]
[1756373917816,0.77313,4594.8,4594.7,19.787]
[1756373918012,0.39173,4594.8,4594.7,0.0468]
[1756373918214,0.7495,4595.1,4595.0,0.0288]
[1756373918517,0.7495,4595.1,4595.0,0.0468]
[1756373919213,0.3917,4595.1,4595.0,0.0468]
[1756373919612,0.7495,4595.1,4595.0,0.0468]
[1756373919920,0.3917,4595.1,4595.0,0.0468]
[1756373920211,0.7495,4595.1,4595.0,0.0468]
[1756373920613,0.7495,4595.1,4595.0,0.0378]
[1756373920813,0.7495,4595.1,4595.0,0.0468]
[1756373921617,0.3578,4595.1,4595.0,0.0468]
[1756373925116,1.12709,4595.2,4595.1,0.0233]
[1756373925320,1.12709,4595.2,4595.1,19.8368]
[1756373926218,1.9163,4595.2,4595.1,19.8368]
[1756373926418,1.4894,4595.2,4595.1,19.8368]
[1756373927420,1.88109,4595.2,4595.1,20.2285]
[1756373927613,1.4894,4595.2,4595.1,20.2285]
[1756373928116,0.3578,4595.7,4595.6,0.0288]
[1756373928417,0.3578,4595.7,4595.6,20.23346]
[1756373928614,0.3776,4596.0,4595.9,0.42043]
[1756373928814,0.7354,4596.0,4595.9,0.42943]
[1756373929123,1.12702,4596.0,4595.9,0.42943]
[1756373930014,1.37722,4596.0,4595.9,0.42943]
[1756373930214,2.30792,4596.0,4595.9,0.42943]
[1756373931721,1.4894,4596.0,4595.9,0.42943]
[1756373931922,0.9856,4596.0,4595.9,0.42943]
[1756373932120,1.37722,4596.0,4595.9,0.42943]
[1756373932324,2.30792,4596.0,4595.9,0.42943]
[1756373933825,2.30792,4596.0,4595.9,0.39163]
[1756373934228,0.7354,4596.0,4595.9,0.43843]
[1756373934525,0.7354,4596.0,4595.9,0.42943]
[1756373934725,0.3578,4596.0,4595.9,0.43843]
[1756373934932,0.3578,4596.0,4595.9,3.64623]
[1756373935317,0.7692,4596.4,4596.0,0.97905]
[1756373935318,0.3578,4596.4,4596.0,0.97905]
[1756373935627,0.3578,4596.4,4596.3,0.4384]
[1756373936428,0.7354,4596.7,4596.6,0.43837]
[1756373936728,1.4894,4596.7,4596.6,20.22237]
[1756373936928,1.9163,4596.7,4596.6,20.22237]
[1756373937727,1.9163,4596.5,4596.4,3.2078]
[1756373938031,1.9163,4596.5,4596.4,22.9978]
[1756373939031,1.9163,4596.5,4596.4,3.2078]
[1756373939329,1.9163,4596.5,4596.4,22.9968]
[1756373940234,1.9163,4596.5,4596.4,23.0346]
[1756373940925,2.30788,4596.5,4596.4,23.42619]
[1756373942733,1.9163,4596.5,4596.4,23.42619]
[1756373942930,0.7354,4596.5,4596.4,23.42619]
[1756373943235,0.3578,4596.5,4596.4,23.42619]
[1756373943435,0.3578,4596.5,4596.4,23.43519]
[1756373945835,0.3776,4596.8,4596.7,0.42936]
[1756373946135,0.3776,4596.8,4596.7,20.22636]
[1756373946526,0.7354,4596.8,4596.7,20.22636]
[1756373946934,0.7354,4596.8,4596.7,20.21736]
[1756373947631,0.3578,4596.8,4596.7,20.22636]
[1756373947821,1.80402,4597.2,4597.1,0.42933]
[1756373948027,2.30782,4597.2,4597.1,20.21333]
[1756373948532,0.3578,4597.2,4597.1,20.21333]
[1756373948728,0.74932,4597.2,4597.1,20.21333]
[1756373949134,0.39154,4597.0,4596.9,3.2078]
[1756373949335,1.87554,4597.0,4596.9,19.3788]
[1756373949636,2.22764,4597.0,4596.9,3.2078]
[1756373949829,2.22764,4597.0,4596.9,18.6318]
[1756373950028,2.22764,4597.0,4596.9,19.02335]
[1756373950433,2.22764,4597.0,4596.9,18.6318]
[1756373950632,2.22764,4597.0,4596.9,3.2078]
[1756373950836,2.22764,4597.0,4596.9,18.6198]
[1756373951835,2.22764,4597.0,4596.9,3.2078]
[1756373952036,2.22764,4597.0,4596.9,18.3368]
[1756373952439,2.22764,4597.0,4596.9,22.9968]
[1756373952634,2.22764,4597.0,4596.9,3.2078]
[1756373952935,2.22764,4597.0,4596.9,18.3238]
[1756373953636,1.11394,4597.0,4596.9,18.71535]
[1756373953831,0.76184,4597.0,4596.9,18.71535]
[1756373954438,1.11394,4597.0,4596.9,18.71535]
[1756373954940,1.83844,4597.0,4596.9,18.71535]
[1756373955134,2.22764,4597.0,4596.9,18.3238]
[1756373955737,2.22764,4597.0,4596.9,22.9968]
[1756373956533,2.22764,4597.0,4596.9,23.38835]
[1756373957043,1.83844,4597.0,4596.9,23.38835]
[1756373957340,0.3703,4597.0,4596.9,23.38835]
[1756373957541,0.76184,4597.0,4596.9,23.38835]
[1756373957934,1.11394,4597.0,4596.9,22.9968]
[1756373958135,1.34744,4597.0,4596.9,22.9968]
[1756373959636,2.22764,4597.0,4596.9,22.9968]
[1756373963044,2.25762662,4597.0,4596.9,22.9968]
[1756373963243,2.74510954,4597.0,4596.9,22.9968]
[1756373964652,2.74510954,4597.0,4596.9,22.9828]
[1756373968347,0.62508,4596.5,4596.4,3.2078]
[1756373968553,1.87558,4596.5,4596.4,22.9808]
[1756373968848,2.22768,4596.5,4596.4,23.37039]
[1756373969047,2.25766662,4596.5,4596.4,23.37039]
[1756373969653,2.25766662,4596.5,4596.4,3.2078]
[1756373969856,2.25766662,4596.5,4596.4,22.9768]
[1756373972047,1.86846662,4596.5,4596.4,22.9768]
[1756373973144,2.25766662,4596.5,4596.4,22.9768]
[1756373975162,2.25766662,4596.5,4596.4,3.2078]
[1756373975359,2.25766662,4596.5,4596.4,22.9718]
[1756373978275,2.25766662,4596.5,4596.4,23.36339]
[1756373978573,2.27007018,4596.5,4596.4,23.36339]
[1756373978874,1.81527018,4596.5,4596.4,22.9718]
[1756373979074,1.77288,4596.5,4596.4,22.9718]
[1756373979373,1.40227374,4596.5,4596.4,22.9718]
[1756373979672,0.81667374,4596.5,4596.4,23.36339]
[1756373981276,0.81667374,4596.5,4596.4,22.9718]
[1756373981467,1.15897374,4596.5,4596.4,22.9718]
[1756373981668,2.32137374,4596.5,4596.4,22.9698]
[1756373981973,2.32295232,4596.5,4596.4,22.9698]
[1756373982876,2.3245309,4596.5,4596.4,22.9698]
[1756373983174,2.3245309,4596.5,4596.4,3.2078]
[1756373983375,2.3245309,4596.5,4596.4,22.9708]
[1756373983671,2.3245309,4596.5,4596.4,3.2078]
[1756373983876,2.3245309,4596.5,4596.4,22.9708]
[1756373984171,1.8991309,4596.5,4596.4,22.9708]
[1756373984376,1.1621309,4596.5,4596.4,22.9708]
[1756373986178,1.65018662,4596.5,4596.4,22.9708]
[1756373986877,1.65018662,4596.5,4596.4,23.36239]
[1756373990482,0.91630662,4596.5,4596.4,23.36239]
[1756373991482,1.30788662,4596.5,4596.4,23.36239]
[1756373991675,0.54600662,4596.5,4596.4,23.36239]
[1756373995385,0.91930662,4596.5,4596.4,23.36239]
[1756373996082,0.54600662,4596.5,4596.4,23.36239]
[1756373996387,0.4312509,4596.5,4596.4,23.36239]
[1756373996679,0.7735509,4596.5,4596.4,3.59939]
[1756373996876,0.7735509,4596.5,4596.4,23.36139]
[1756373997879,0.4312509,4596.5,4596.4,23.36139]
[1756374000493,1.0646309,4596.5,4596.4,23.36139]
[1756374000687,2.3275309,4596.5,4596.4,23.36139]
[1756374000889,2.3275309,4596.5,4596.4,22.9698]
[1756374001091,2.3275309,4596.5,4596.4,23.36139]
[1756374001590,0.0579509,4596.5,4596.4,23.36139]
[1756374001792,0.4312509,4596.5,4596.4,23.36139]
[1756374010499,0.8228309,4596.5,4596.4,23.36139]
[1756374011098,0.4312509,4596.5,4596.4,23.36139]
[1756374011798,0.8228309,4596.5,4596.4,23.36139]
[1756374012401,1.8188309,4596.5,4596.4,23.36139]
[1756374013899,2.3373309,4596.5,4596.4,3.59939]
[1756374014100,2.3373309,4596.5,4596.4,22.9678]
[1756374014700,2.3373309,4596.5,4596.4,23.35939]
[1756374014906,1.9181309,4596.5,4596.4,23.35939]
[1756374015098,1.9181309,4596.5,4596.4,22.9678]
[1756374015297,1.9181309,4596.5,4596.4,23.35939]
[1756374015695,0.0579509,4596.5,4596.4,23.35939]
[1756374016709,0.0579509,4596.5,4596.4,23.57695]
[1756374017408,0.0579509,4596.5,4596.4,23.35939]
[1756374017606,0.0579509,4596.5,4596.4,23.57695]
[1756374017809,0.39152,4597.2,4597.1,0.39153]
[1756374018007,0.39152,4597.2,4597.1,23.35933]
[1756374018407,1.08472,4597.2,4597.1,23.35933]
[1756374018705,2.24902,4597.2,4597.1,22.9678]
[1756374020105,1.82982,4597.2,4597.1,22.9678]
[1756374020406,0.39152,4597.2,4597.1,22.9678]
[1756374020712,0.73452,4597.2,4597.1,22.9678]
[1756374020911,1.08472,4597.2,4597.1,22.9678]
[1756374021212,0.73452,4597.2,4597.1,22.9678]
[1756374021411,1.08472,4597.2,4597.1,22.9678]
[1756374021709,2.24902,4597.2,4597.1,22.9668]
[1756374021910,1.08472,4597.2,4597.1,22.9668]
[1756374022110,0.73452,4597.2,4597.1,22.9668]
[1756374023509,1.08472,4597.2,4597.1,22.9668]
[1756374024108,0.73452,4597.2,4597.1,22.9668]
[1756374024709,1.08472,4597.2,4597.1,22.9668]
[1756374024911,2.24902,4597.2,4597.1,22.9668]